bitfinex-derivatives/quotes_ETHF0:USTF0_20250104
["timestamp","ask_amount","ask_price","bid_price","bid_amount"]
[1735996907484,0.27494,3638.4,3638.3,0.27494]
[1735996908583,0.499,3638.9,3638.3,0.27494]
[1735996908584,0.27492,3638.6,3638.3,0.27494]
[1735996908793,0.27494,3638.3,3638.2,3.48275]
[1735996909592,0.27494,3638.3,3638.2,3.2078]
[1735996909888,0.27494,3638.3,3638.2,3.48275]
[1735996910489,0.27494,3638.3,3638.2,3.2078]
[1735996910691,0.27494,3638.3,3638.2,3.48275]
[1735996911089,1.0887,3638.5,3638.2,3.2078]
[1735996911395,1.36364,3638.5,3638.4,0.27494]
[1735996911694,0.27494,3638.4,3638.3,0.27494]
[1735996912493,0.27494,3638.3,3638.2,3.2078]
[1735996914092,0.27495,3638.2,3638.1,0.27495]
[1735996914293,0.27496,3638.1,3638.0,0.27496]
[1735996914498,0.5337,3638.4,3637.9,1.1294]
[1735996914698,0.27496,3638.2,3638.1,0.27496]
[1735996916992,1.6337,3638.4,3637.9,1.1294]
[1735996917191,0.27496,3638.1,3638.0,0.27496]
[1735996917890,1.6337,3638.4,3637.9,1.1294]
[1735996918389,0.27494,3638.3,3638.1,0.27495]
[1735996918591,0.27494,3638.3,3637.9,1.1294]
[1735996918797,0.27494,3638.3,3638.2,0.27495]
[1735996920191,1.0887,3638.5,3638.2,3.2078]
[1735996920394,1.0887,3638.5,3638.4,0.27494]
[1735996925297,1.36363,3638.5,3638.3,0.27494]
[1735996925495,1.36363,3638.5,3638.2,3.2078]
[1735996925496,1.0887,3638.5,3638.2,3.2078]
[1735996925696,1.0887,3638.5,3638.4,0.27494]
[1735996927395,1.36363,3638.5,3638.4,0.27494]
[1735996927600,1.0887,3638.5,3638.4,0.27494]
[1735996929705,2.15588633,3638.6,3638.5,0.27493]
[1735996931493,2.15588633,3638.6,3638.5,4.5791693]
[1735996931698,0.77391,3638.8,3638.7,0.27491]
[1735996931897,0.27491,3638.7,3638.6,3.2078]
[1735996932294,0.27491,3638.7,3638.5,4.3042393]
[1735996932500,0.27491,3638.7,3638.6,0.27492]
[1735996932701,0.499,3638.8,3638.5,7.5120393]
[1735996932900,0.27492,3638.6,3638.5,0.27493]
[1735996933404,2.65488633,3638.8,3638.4,6.44458465]
[1735996933601,2.92979633,3638.8,3638.7,0.27491]
[1735996933907,0.77391,3638.8,3638.7,0.27491]
[1735996935404,0.27492,3638.6,3638.5,7.52268109]
[1735996935604,0.27492,3638.6,3638.5,4.31488109]
[1735996936410,0.27493,3638.5,3638.4,0.27494]
[1735996936607,0.27494,3638.4,3638.3,4.58982109]
[1735996937101,2.48488954,3638.4,3638.3,4.31488109]
[1735996937303,2.98388954,3638.4,3638.3,4.31488109]
[1735996939904,2.98388954,3638.4,3637.9,4.58985109]
[1735996939905,0.27496,3638.2,3637.9,4.58985109]
[1735996940410,0.27496,3638.1,3637.9,4.31488109]
[1735996940909,0.77396,3638.1,3637.9,4.58985109]
[1735996941111,2.93494079,3638.1,3637.9,4.58985109]
[1735996941608,2.65998079,3638.1,3637.9,4.31488109]
[1735996941806,2.65998079,3638.1,3638.0,4.05077]
[1735996942006,2.65998079,3638.1,3638.0,4.59207]
[1735996942408,0.499,3638.1,3638.0,4.59207]
[1735996943118,2.16098079,3638.2,3638.1,0.27496]
[1735996943408,4.30819692,3638.5,3638.1,0.27496]
[1735996943409,2.16098079,3638.5,3638.4,0.27494]
[1735996943606,2.16098079,3638.5,3638.4,3.48274]
[1735996944811,2.43590079,3638.7,3638.4,6.95813017]
[1735996945008,2.43590079,3638.7,3638.6,0.27492]
[1735996945411,0.27493,3638.5,3638.4,7.23306017]
[1735996945713,2.16098079,3638.7,3638.5,0.27493]
[1735996945714,0.27493,3638.6,3638.5,0.27493]
[1735996946807,0.27493,3638.6,3638.5,4.58572849]
[1735996947616,0.27493,3638.6,3638.5,4.31079849]
[1735996947818,0.84533,3638.6,3638.5,4.31079849]
[1735996948416,1.40303,3638.6,3638.5,4.31079849]
[1735996949711,1.54060104,3638.6,3638.1,4.31079849]
[1735996949908,0.27495,3638.2,3638.1,4.31079849]
[1735996951514,0.27496,3638.1,3638.0,4.31079849]
[1735996951911,3.53674576,3638.2,3638.0,4.31079849]
[1735996952106,3.53674576,3638.2,3638.1,0.27496]
[1735996953115,0.27496,3638.1,3638.0,4.58575849]
[1735996954121,3.53675576,3638.2,3638.0,4.58575849]
[1735996955116,0.27496,3638.1,3638.0,4.58575849]
[1735996955815,2.43675576,3638.1,3638.0,4.58575849]
[1735996956216,3.43462766,3638.1,3638.0,4.58575849]
[1735996956518,2.16179576,3638.1,3638.0,4.58575849]
[1735996957224,2.43675576,3638.2,3638.1,0.27496]
[1735996958017,2.16179576,3638.2,3638.1,1.2728319]
[1735996958219,2.16179576,3638.2,3638.1,2.3624319]
[1735996960122,0.82843,3638.5,3638.4,0.27494]
[1735996960320,0.82843,3638.5,3638.4,3.48274]
[1735996960620,0.5535,3638.5,3638.1,4.31497204]
[1735996960820,1.2728119,3638.4,3638.3,0.27494]
[1735996961728,3.43460766,3638.4,3638.3,0.27494]
[1735996961928,3.43460766,3638.4,3638.2,4.58519201]
[1735996961929,0.27494,3638.3,3638.2,4.58519201]
[1735996962824,0.27494,3638.3,3638.2,4.31024201]
[1735996963327,0.27494,3638.3,3638.2,4.58519201]
[1735996964331,2.43673576,3638.3,3638.2,0.27495]
[1735996964532,2.43673576,3638.3,3638.1,4.31024201]
[1735996964533,0.27495,3638.2,3638.1,4.31024201]
[1735996964829,2.16179576,3638.3,3638.2,0.27495]
[1735996966028,2.16179576,3638.4,3638.3,0.27494]
[1735996966225,2.16179576,3638.4,3638.3,0.84054]
[1735996966425,2.16179576,3638.4,3638.3,1.37784]
[1735996967633,0.27492,3638.6,3638.5,0.27493]
[1735996968128,2.43671576,3638.7,3638.6,0.27492]
[1735996970128,2.16179576,3638.7,3638.6,0.27492]
[1735996971528,1.0693,3638.8,3638.6,3.74511929]
[1735996971831,1.0693,3638.8,3638.7,0.27491]
[1735996972930,1.0693,3638.8,3638.7,4.58064539]
[1735996974334,1.34421,3638.8,3638.7,4.58064539]
[1735996975338,1.0693,3638.8,3638.7,0.27491]
[1735996976533,1.34421,3638.8,3638.7,0.27491]
[1735996978639,3.98287766,3638.9,3638.8,0.27491]
[1735996978937,0.27491,3638.7,3638.6,4.30573539]
[1735996979142,3.70796766,3638.9,3638.6,4.30573539]
[1735996979143,2.71009576,3638.9,3638.8,0.27491]
[1735996979644,0.27491,3638.8,3638.7,0.27491]
[1735996979945,0.5483,3638.9,3638.8,0.27491]
[1735996980441,0.8232,3638.9,3638.8,0.27491]
[1735996981341,0.5483,3638.9,3638.8,0.27491]
[1735996984749,0.5483,3638.9,3638.8,0.85091]
[1735996985743,0.5483,3638.9,3638.8,5.15664539]
[1735996986650,2.16179576,3639.2,3638.8,6.15451729]
[1735996986950,2.16179576,3639.2,3639.1,1.2727519]
[1735996987649,2.16179576,3639.2,3639.1,4.4805519]
[1735996988646,2.16179576,3639.6,3639.5,0.27485]
[1735996989052,2.16179576,3639.6,3639.5,3.48265]
[1735996989747,2.16179576,3639.6,3639.5,3.2078]
[1735996989953,0.27485,3639.6,3639.5,3.2078]
[1735996990255,0.27485,3639.6,3639.5,3.48265]
[1735996990443,0.27485,3639.6,3639.5,0.27485]
[1735996990949,0.27485,3639.5,3639.4,4.30573539]
[1735996991348,0.9978719,3639.6,3639.2,4.30573539]
[1735996991547,1.2727219,3639.6,3639.5,0.27485]
[1735996992045,0.27486,3639.5,3639.4,0.27486]
[1735996992246,0.9978719,3639.6,3639.2,4.30573539]
[1735996992548,0.9978719,3639.6,3639.3,0.27486]
[1735996992954,0.27486,3639.4,3639.3,0.27486]
[1735996994452,0.9978719,3639.6,3639.1,0.9978719]
[1735996994655,0.9978719,3639.6,3639.5,0.27485]
[1735996995748,0.5303,3639.7,3639.2,0.6872]
[1735996995958,0.5303,3639.7,3639.6,0.27485]
[1735996997554,0.5303,3639.7,3639.5,0.5402]
[1735996997555,0.27485,3639.5,3639.4,3.2078]
[1735996997952,0.27486,3639.4,3639.3,0.27486]
[1735996998257,0.5303,3639.7,3639.3,8.51140729]
[1735996998449,0.80514,3639.7,3639.6,0.27485]
[1735996999158,0.27486,3639.5,3639.4,0.27486]
[1735996999745,0.27486,3639.4,3639.3,3.48266]
[1735996999951,0.27486,3639.4,3639.3,3.2078]
[1735997001260,0.27486,3639.4,3639.3,3.48267]
[1735997001458,0.27486,3639.4,3639.3,3.2078]
[1735997002150,0.27486,3639.4,3639.3,3.48267]
[1735997002554,0.27486,3639.4,3639.3,3.2078]
[1735997002760,0.27487,3639.3,3639.2,0.27487]
[1735997004563,0.9978719,3639.6,3639.1,0.9978719]
[1735997004859,1.90488,3639.2,3639.1,0.27488]
[1735997005656,1.63,3639.2,3638.9,4.30573539]
[1735997005851,2.9027519,3639.2,3639.1,0.27488]
[1735997006056,0.27489,3639.1,3639.0,0.27489]
[1735997008558,2.6278719,3639.2,3638.8,5.30360729]
[1735997008758,0.2749,3639.0,3638.9,0.27489]
[1735997009662,0.27489,3639.1,3639.0,0.27489]
[1735997013662,0.2749,3639.0,3638.9,0.27489]
[1735997016363,1.2727719,3639.0,3638.9,0.27489]
[1735997018063,0.9978719,3639.0,3638.8,4.30573539]
[1735997018271,0.2749,3638.9,3638.8,4.58063539]
[1735997019469,0.2749,3638.9,3638.8,4.58064539]
[1735997022264,0.2749,3638.9,3638.8,4.30573539]
[1735997023075,0.27491,3638.7,3638.6,4.30573539]
[1735997023266,1.2727819,3638.7,3638.6,4.30573539]
[1735997024666,0.27493,3638.5,3638.4,4.58066539]
[1735997027168,2.16179576,3638.8,3638.7,0.27491]
[1735997027567,2.43670576,3638.8,3638.7,0.27491]
[1735997027870,3.43457766,3638.8,3638.7,0.80851]
[1735997028071,3.15966766,3638.8,3638.4,4.30573539]
[1735997028272,0.27493,3638.5,3638.4,4.58067539]
[1735997029684,0.27493,3638.6,3638.5,0.27493]
[1735997031081,0.27493,3638.5,3638.4,4.58066539]
[1735997031573,0.27493,3638.6,3638.5,0.27493]
[1735997033775,6.46229538,3639.9,3639.2,3.2078]
[1735997033976,8.61639384,3640.3,3640.2,0.2748]
[1735997033977,7.51743696,3640.3,3640.2,0.2748]
[1735997034179,4.73419509,3640.3,3640.2,9.4804719]
[1735997034478,3.51778201,3640.3,3640.2,9.4804719]
[1735997035177,3.39678201,3640.3,3640.2,9.4804719]
[1735997035371,0.9978719,3641.3,3640.2,24.57534778]
[1735997035576,2.748,3641.2,3641.1,0.27473]
[1735997035774,2.748,3641.2,3641.1,3.48253]
[1735997037193,2.748,3641.2,3641.1,17.19332677]
[1735997038273,2.748,3641.2,3641.1,8.60575529]
[1735997038475,0.2752108,3641.2,3641.1,8.60575529]
[1735997043985,0.2752108,3641.2,3641.1,7.7620147]
[1735997045483,0.82971,3641.5,3641.1,3.2078]
[1735997045684,0.82971,3641.5,3641.2,0.27472]
[1735997045881,0.555,3641.5,3641.4,0.27471]
[1735997046081,0.555,3641.5,3641.1,3.2078]
[1735997046282,0.555,3641.5,3641.3,0.27472]
[1735997046685,0.8297,3641.5,3641.3,0.27472]
[1735997046988,0.27471,3641.4,3641.2,0.27472]
[1735997047190,0.82971,3641.5,3641.2,0.27472]
[1735997047679,0.82971,3641.5,3641.1,3.2078]
[1735997047680,0.27472,3641.3,3641.1,3.2078]
[1735997048084,2.74240527,3641.4,3641.1,3.2078]
[1735997048284,0.27473,3641.2,3641.1,3.2078]
[1735997053690,0.27473,3641.2,3641.1,3.48253]
[1735997053883,0.27473,3641.2,3641.1,3.2078]
[1735997055690,1.633,3641.4,3640.7,3.2078]
[1735997055691,3.84040527,3641.4,3640.7,3.2078]
[1735997055987,2.73980527,3641.1,3640.3,4.2794847]
[1735997056189,1.27121323,3640.8,3640.6,0.27477]
[1735997056492,0.5487,3640.7,3640.6,0.27477]
[1735997056691,0.5487,3640.7,3640.5,0.27478]
[1735997056692,0.27477,3640.6,3640.5,0.27478]
[1735997056890,0.5487,3640.7,3640.5,0.27478]
[1735997057092,0.82347,3640.7,3640.5,0.27478]
[1735997057392,0.82347,3640.7,3640.4,0.27479]
[1735997057585,0.5487,3640.7,3640.3,0.99645323]
[1735997057890,0.5487,3640.7,3640.6,0.27477]
[1735997057891,0.82346,3640.7,3640.6,0.27477]
[1735997059489,0.5487,3640.7,3640.6,0.27477]
[1735997059698,0.5487,3640.7,3640.6,3.48257]
[1735997064788,0.5324,3641.1,3640.6,5.41581343]
[1735997065098,1.0965,3641.1,3641.0,0.27474]
[1735997065995,1.095,3641.5,3641.0,3.2078]
[1735997066194,0.82232,3641.4,3641.3,0.27472]
[1735997068202,0.27475,3640.9,3640.8,3.4098847]
[1735997068500,0.27475,3640.9,3640.2,10.73446435]
[1735997068501,0.27476,3640.8,3640.7,3.4098847]
[1735997068699,1.37526,3640.8,3640.7,3.4098847]
[1735997070296,0.27479,3640.4,3639.7,0.5365]
[1735997070492,0.27479,3640.4,3640.2,0.2748]
[1735997071194,1.1005,3640.8,3639.7,0.5365]
[1735997071396,0.553,3640.7,3639.7,0.5365]
[1735997071597,0.27479,3640.4,3640.3,0.27479]
[1735997073907,0.553,3640.7,3639.9,11.84010791]
[1735997074109,0.2748,3640.3,3640.2,0.2748]
[1735997074304,0.2748,3640.3,3639.9,11.84010791]
[1735997074305,0.553,3640.7,3639.9,11.84010791]
[1735997074508,0.27481,3640.2,3640.1,0.2748]
[1735997075310,0.27481,3640.2,3640.1,5.43805428]
[1735997075511,0.553,3640.7,3640.2,0.2748]
[1735997075512,0.2748,3640.3,3640.2,0.2748]
[1735997075911,0.553,3640.7,3640.1,5.16325428]
[1735997076409,0.27479,3640.4,3640.3,0.27479]
[1735997078204,0.553,3640.7,3640.2,6.42429448]
[1735997078508,0.84646,3640.8,3640.7,0.27476]
[1735997078712,0.27477,3640.6,3640.4,0.27479]
[1735997078914,0.84646,3640.8,3640.7,0.27476]
[1735997079607,0.84646,3640.8,3640.7,11.87551311]
[1735997080806,0.84646,3640.8,3640.7,14.03879011]
[1735997081208,0.5717,3640.8,3640.7,14.03879011]
[1735997081514,0.84646,3640.8,3640.7,14.03879011]
[1735997081907,0.84646,3640.8,3640.7,24.40205957]
[1735997083410,0.5717,3640.8,3640.7,17.24659011]
[1735997084308,0.84646,3640.8,3640.7,17.24659011]
[1735997085115,0.84646,3640.8,3640.7,8.65901863]
[1735997086010,0.84646,3640.8,3640.7,8.38425863]
[1735997086514,0.84646,3640.8,3640.7,19.0256946]
[1735997086911,0.84646,3640.8,3640.7,18.7509346]
[1735997087106,0.84646,3640.8,3640.7,15.5431346]
[1735997087507,2.34964,3641.1,3640.7,15.5431346]
[1735997087710,0.27476,3640.8,3640.7,15.5431346]
[1735997088206,0.27476,3640.8,3640.7,5.17645863]
[1735997089616,0.27476,3640.8,3640.7,11.6318753]
[1735997094112,0.5757,3640.9,3640.7,11.6318753]
[1735997094314,0.27476,3640.8,3640.7,11.9066353]
[1735997094523,0.27475,3640.9,3640.7,11.9066353]
[1735997094819,0.27476,3640.8,3640.7,11.9066353]
[1735997095214,0.27476,3640.8,3640.7,8.88028376]
[1735997095812,0.27476,3640.8,3640.7,8.60552376]
[1735997096013,0.27476,3640.8,3640.6,0.85367]
[1735997096224,0.27476,3640.7,3640.6,0.85367]
[1735997097721,1.6608,3641.1,3640.4,0.5742]
[1735997097920,0.27477,3640.7,3640.6,0.27477]
[1735997098519,1.6608,3641.1,3640.5,0.5361]
[1735997099118,1.6608,3641.1,3640.5,0.81087]
[1735997099426,0.27477,3640.6,3640.5,0.81087]
[1735997100423,1.6608,3641.1,3640.5,0.5361]
[1735997100625,0.5508,3641.1,3640.8,5.41581343]
[1735997100820,3.23885352,3641.7,3641.6,0.2747]
[1735997101016,3.52353488,3641.9,3641.6,5.41581343]
[1735997101224,0.72416136,3641.9,3641.8,0.27468]
[1735997101527,5.39808921,3642.1,3642.0,0.27467]
[1735997101528,4.59255912,3642.1,3642.0,0.27467]
[1735997101730,4.59255912,3642.1,3642.0,5.69048343]
[1735997102022,4.59255912,3642.1,3642.0,10.69048343]
[1735997102423,4.59255912,3642.1,3642.0,5.69048343]
[1735997102619,0.27458,3643.1,3642.1,0.68665]
[1735997102822,1.11,3643.2,3642.9,3.2078]
[1735997103020,1.38458,3643.2,3643.0,0.27459]
[1735997103617,1.11,3643.2,3642.9,3.2078]
[1735997103928,1.11,3643.2,3643.0,8.56419036]
[1735997104128,1.38458,3643.2,3643.0,8.56419036]
[1735997104320,0.27458,3643.2,3643.0,8.56419036]
[1735997104823,0.5494,3643.3,3643.0,8.56419036]
[1735997104824,0.82397,3643.3,3643.1,2.48259343]
[1735997105024,0.5494,3643.3,3643.1,2.20801343]
[1735997105330,0.5494,3643.3,3643.1,8.89509436]
[1735997105827,0.82397,3643.3,3643.1,8.62051436]
[1735997106028,0.5494,3643.3,3643.1,8.89509436]
[1735997106529,0.5494,3643.3,3643.2,5.55979633]
[1735997107322,3.48234,3643.7,3643.2,5.55979633]
[1735997107528,3.2078,3643.7,3643.4,0.27456]
[1735997107727,3.2078,3643.7,3643.5,0.27455]
[1735997107924,3.2078,3643.7,3643.4,2.20801343]
[1735997107925,3.2078,3643.7,3643.6,0.27454]
[1735997108228,0.5447,3643.9,3643.6,0.27454]
[1735997108923,0.81922,3643.9,3643.6,0.27454]
[1735997109124,0.5384,3644.2,3642.9,0.68649]
[1735997109125,0.5384,3644.2,3644.0,0.27451]
[1735997109330,0.5706,3644.4,3644.1,0.27451]
[1735997109331,0.84508,3644.4,3644.1,0.27451]
[1735997109627,0.2745,3644.2,3643.8,3.48232]
[1735997109929,0.5706,3644.4,3643.8,3.48232]
[1735997109930,0.27451,3644.1,3643.8,3.2078]
[1735997110126,0.27451,3644.1,3643.8,3.48233]
[1735997110327,0.5706,3644.4,3643.8,3.2078]
[1735997110523,5.98641343,3644.4,3643.6,6.41250093]
[1735997110829,0.27454,3643.7,3643.6,6.41250093]
[1735997111729,1.6684,3643.9,3643.2,3.2078]
[1735997111931,0.27457,3643.3,3643.2,3.2078]
[1735997112628,1.6684,3643.9,3643.0,6.41250093]
[1735997112931,1.6684,3643.9,3643.3,0.27457]
[1735997112932,0.27455,3643.6,3643.3,0.27457]
[1735997113230,1.6684,3643.9,3643.2,3.2078]
[1735997113724,0.27455,3643.6,3643.2,3.48237]
[1735997114031,0.27458,3643.2,3643.1,2.20801343]
[1735997114231,0.5554,3643.5,3642.8,5.41581343]
[1735997114427,0.27457,3643.3,3643.0,0.27458]
[1735997114830,0.5554,3643.5,3643.0,0.27458]
[1735997115127,0.27458,3643.2,3642.9,0.27459]
[1735997115527,0.5554,3643.5,3642.9,0.27459]
[1735997115726,0.27458,3643.2,3642.9,0.2746]
[1735997115928,0.5554,3643.5,3642.8,5.41581343]
[1735997116127,0.5554,3643.5,3643.2,3.2078]
[1735997116326,0.27456,3643.4,3643.2,3.48237]
[1735997117435,0.27457,3643.3,3643.2,3.2078]
[1735997117735,0.27458,3643.1,3642.9,0.27459]
[1735997118031,0.27458,3643.2,3643.0,0.27459]
[1735997118935,0.2746,3642.9,3642.8,3.2078]
[1735997119135,0.27459,3643.0,3642.8,3.2078]
[1735997119339,0.27459,3643.0,3642.8,3.4824]
[1735997120838,0.5342,3643.1,3642.8,3.2078]
[1735997121134,0.5342,3643.1,3643.0,0.27459]
[1735997121429,1.109,3643.2,3643.1,0.27458]
[1735997122433,3.87431343,3643.2,3642.8,3.2078]
[1735997122829,0.2746,3642.9,3642.8,3.2078]
[1735997123031,1.6663,3643.2,3642.8,3.4824]
[1735997123227,1.6663,3643.2,3642.8,3.2078]
[1735997123432,0.2746,3642.9,3642.8,3.2078]
[1735997124439,2.20801343,3642.9,3642.4,3.2078]
[1735997124641,0.27464,3642.4,3642.2,0.27465]
[1735997124933,0.5555728,3642.3,3642.1,6.68715093]
[1735997125126,0.27465,3642.2,3642.1,6.68715093]
[1735997125330,0.5555728,3642.3,3642.1,6.68715093]
[1735997125540,0.561,3642.2,3642.1,0.27465]
[1735997126632,0.561,3642.2,3641.8,6.41250093]
[1735997126839,0.27467,3641.9,3641.8,6.41250093]
[1735997127037,0.27467,3641.9,3641.8,0.27468]
[1735997127732,0.5262,3642.1,3641.9,0.27467]
[1735997127937,0.27467,3642.0,3641.9,0.27467]
[1735997128536,3.21244107,3642.3,3641.9,0.27467]
[1735997128837,0.27466,3642.1,3641.9,0.27467]
[1735997130334,4.32544107,3642.3,3641.5,5.41581343]
[1735997130534,0.27467,3642.0,3641.8,0.27468]
[1735997133747,1.6765,3642.2,3641.5,5.41581343]
[1735997134044,0.27467,3641.9,3641.7,0.27468]
[1735997134946,0.27467,3642.0,3641.8,0.27468]
[1735997136445,1.6765,3642.2,3641.8,0.27468]
[1735997136746,0.27469,3641.8,3641.5,3.2078]
[1735997137037,1.6765,3642.2,3641.5,3.2078]
[1735997137246,0.27468,3641.9,3641.7,0.27469]
[1735997137838,2.20801343,3642.0,3641.3,6.41250093]
[1735997138235,0.27469,3641.7,3641.5,0.2747]
[1735997138741,0.27467,3641.9,3641.8,0.27468]
[1735997139245,0.27467,3641.9,3641.7,0.27468]
[1735997139844,0.27467,3641.9,3641.6,0.2747]
[1735997140043,0.27467,3641.9,3641.7,0.27468]
[1735997140444,1.113,3642.1,3641.7,0.27468]
[1735997140445,0.27468,3641.8,3641.7,0.27468]
[1735997141342,1.113,3642.1,3641.7,0.27468]
[1735997141538,0.27467,3642.0,3641.7,0.27468]
[1735997141743,1.113,3642.1,3641.4,8.62051436]
[1735997141941,1.6765,3642.2,3641.7,2.20801343]
[1735997141942,0.5614,3642.2,3641.7,2.20801343]
[1735997142143,0.83606,3642.2,3642.0,0.27466]
[1735997142444,0.27466,3642.1,3642.0,0.27466]
[1735997143545,0.5614,3642.2,3641.8,7.50810093]
[1735997143747,0.27467,3642.0,3641.9,0.27467]
[1735997143945,0.27466,3642.1,3642.0,0.27467]
[1735997145343,0.27466,3642.1,3641.9,11.87050087]
[1735997145542,0.27466,3642.1,3642.0,5.45799994]
[1735997145947,3.48244,3642.3,3642.2,0.27465]
[1735997146450,3.2078,3642.3,3642.2,0.27465]
[1735997146849,0.27464,3642.4,3642.3,0.27464]
[1735997148744,1.6519,3642.5,3642.2,6.4214744]
[1735997148949,1.92653,3642.5,3642.4,0.27464]
[1735997150150,1.6519,3642.5,3642.2,6.4214744]
[1735997150453,0.27464,3642.4,3642.3,0.27464]
[1735997150850,0.27464,3642.3,3642.2,6.4214744]
[1735997151155,5.69045343,3642.3,3642.2,6.4214744]
[1735997151749,46.49045343,3642.3,3642.2,6.4214744]
[1735997152156,0.27469,3641.7,3641.5,6.6961744]
[1735997152558,0.27469,3641.7,3641.6,0.2747]
[1735997152859,0.2747,3641.6,3641.5,6.4214744]
[1735997153752,0.5746,3642.2,3641.5,6.4214744]
[1735997154055,0.27469,3641.7,3641.6,0.27469]
[1735997154359,0.27467,3642.0,3641.8,0.27468]
[1735997154855,0.5746,3642.2,3641.8,0.27468]
[1735997155053,0.27467,3641.9,3641.8,0.27468]
[1735997156456,0.27467,3642.0,3641.8,0.27468]
[1735997156757,0.5746,3642.2,3641.8,0.27468]
[1735997156959,0.27467,3642.0,3641.8,0.27468]
[1735997157568,0.27467,3642.0,3641.8,6.6961544]
[1735997157764,0.27467,3641.9,3641.8,6.6961544]
[1735997158261,0.5746,3642.2,3641.8,6.6961544]
[1735997158464,0.27467,3642.0,3641.8,6.6961544]
[1735997158862,0.27467,3642.0,3641.9,5.46605065]
[1735997160369,1.102,3642.2,3641.9,5.46605065]
[1735997160967,1.102,3642.2,3641.9,11.88752505]
[1735997161162,0.27467,3642.0,3641.9,11.88752505]
[1735997161965,0.27467,3642.0,3641.9,5.46605065]
[1735997164166,0.27467,3642.0,3641.9,14.03024101]
[1735997164571,9.69069686,3642.0,3641.9,11.48243978]
[1735997164768,9.69069686,3642.0,3641.9,9.01584336]
[1735997164769,7.48268343,3642.0,3641.9,9.01584336]
[1735997165067,48.28268343,3642.0,3641.9,2.59286187]
[1735997165274,48.28268343,3642.0,3641.6,10.70523796]
[1735997165275,0.27469,3641.7,3641.6,10.32076983]
[1735997165566,5.69050343,3641.7,3641.6,10.32076983]
[1735997165769,0.27471,3641.4,3641.3,6.44139169]
[1735997165964,3.58472343,3641.4,3641.3,6.44139169]
[1735997167573,0.27474,3641.0,3640.9,6.44139169]
[1735997168669,0.27475,3640.9,3640.8,6.44139169]
[1735997170068,2.74331343,3641.1,3640.6,6.44139169]
[1735997170273,0.27476,3640.7,3640.6,6.44139169]
[1735997171567,0.27478,3640.5,3640.4,6.44139169]
[1735997171770,1.37678,3640.5,3640.4,6.44139169]
[1735997172477,1.37678,3640.5,3640.3,6.44139169]
[1735997173077,0.27479,3640.4,3640.3,6.44139169]
[1735997174173,1.102,3640.5,3640.3,6.44139169]
[1735997174374,0.91079,3640.4,3640.3,6.44139169]
[1735997174780,0.27479,3640.3,3640.2,7.12669169]
[1735997175990,0.27479,3640.3,3640.2,0.6853]
[1735997176315,3.48259,3640.3,3640.2,0.6853]
[1735997179997,3.2078,3640.3,3639.7,3.2078]
[1735997180181,0.27482,3639.9,3639.8,0.6539]
[1735997184881,0.27482,3640.0,3639.8,0.92873]
[1735997185176,0.27482,3640.0,3639.9,1.338]
[1735997185982,1.37382,3640.0,3639.9,1.338]
[1735997187268,0.27482,3640.0,3639.9,1.338]
[1735997192788,0.27482,3640.0,3639.8,0.6539]
[1735997192789,0.27482,3639.9,3639.8,0.6539]
[1735997192985,0.27482,3639.9,3639.3,4.27780856]
[1735997192986,0.27486,3639.4,3639.3,4.27780856]
[1735997193388,1.37486,3639.4,3639.3,4.27780856]
[1735997194285,1.37486,3639.4,3639.3,0.6418]
[1735997196783,3.2078,3640.3,3639.3,6.05761343]
[1735997196989,0.27481,3640.2,3640.0,0.27481]
[1735997197191,0.27481,3640.2,3640.1,2.0277]
[1735997197887,3.4826,3640.3,3640.1,2.30251]
[1735997198287,3.2078,3640.3,3640.1,2.0277]
[1735997198484,0.2748,3640.2,3640.1,2.0277]
[1735997203295,0.2748,3640.2,3640.1,2.30251]
[1735997203798,0.2748,3640.2,3640.1,2.0277]
[1735997206093,1.1,3640.3,3640.1,2.0277]
[1735997206393,0.2748,3640.2,3640.1,2.0277]
[1735997207496,1.3748,3640.3,3640.1,2.3025]
[1735997208587,1.1,3640.3,3640.2,0.2748]
[1735997208794,1.1,3640.5,3640.1,2.0277]
[1735997208995,0.27479,3640.4,3640.1,6.30550856]
[1735997209196,0.27479,3640.4,3640.2,0.2748]
[1735997209604,1.37478,3640.5,3640.1,6.30550856]
[1735997209901,1.37478,3640.6,3640.2,0.2748]
[1735997210097,0.27478,3640.5,3640.3,11.49132902]
[1735997210497,0.27479,3640.4,3640.3,11.49132902]
[1735997211402,0.27479,3640.4,3640.3,8.56064002]
[1735997213006,0.27479,3640.4,3640.3,13.6148672]
[1735997215203,0.27479,3640.4,3640.3,5.05422718]
[1735997217704,3.48259,3640.4,3640.3,5.05422718]
[1735997217905,5.69060343,3640.4,3640.3,5.05422718]
[1735997219113,3.48259,3640.4,3640.3,5.05422718]
[1735997222209,3.48259,3640.4,3640.3,13.6148672]
[1735997223003,3.48259,3640.4,3640.3,5.05422718]
[1735997223711,0.2748,3640.2,3640.1,2.0277]
[1735997224810,0.2748,3640.2,3640.1,25.80624843]
[1735997228520,0.2748,3640.2,3640.1,15.68904463]
[1735997230221,1.27154574,3640.2,3640.1,15.68904463]
[1735997232215,3.2078,3640.4,3640.1,16.68579037]
[1735997232421,0.2748,3640.2,3640.1,16.96060037]
[1735997232620,3.2078,3640.4,3640.1,16.68579037]
[1735997233320,0.2748,3640.2,3640.1,3.02444574]
[1735997234421,0.2748,3640.2,3640.1,2.0277]
[1735997234618,0.2748,3640.2,3640.1,16.85142772]
[1735997235818,3.2078,3640.4,3640.1,27.60485614]
[1735997236123,0.2748,3640.2,3640.1,27.60485614]
[1735997236419,2.48321637,3640.2,3640.1,25.57715614]
[1735997238129,2.48321637,3640.2,3640.1,4.94124257]
[1735997238320,0.2748,3640.2,3640.1,4.94124257]
[1735997238521,2.48321637,3640.2,3640.1,4.94124257]
[1735997240324,2.48321637,3640.2,3640.1,5.64154257]
[1735997240726,2.48321637,3640.2,3640.1,12.0920386]
[1735997241925,2.48321637,3640.2,3640.1,5.64154257]